[Event "*** SCC Grand Prix: Titled Tuesday Blitz"]
[Site "Chess.com"]
[Date "2020.07.21"]
[Round "10"]
[White "Chesswizard_2007"]
[Black "olksuna"]
[Result "1-0"]
[WhiteElo "2479"]
[BlackElo "2616"]
[TimeControl "180+1"]
[EndTime "12:01:26 PDT"]
[Termination "Chesswizard_2007 won by resignation"]

1. d4 {[%clk 0:03:00.9]} 1... Nf6 {[%clk 0:02:59.6]} 2. c4 {[%clk 0:02:57.1]}
2... e6 {[%clk 0:02:59.5]} 3. Nc3 {[%clk 0:02:56.7]} 3... Bb4 {[%clk 0:02:59.5]}
4. Nf3 {[%clk 0:02:56.8]} 4... c5 {[%clk 0:02:53.8]} 5. g3 {[%clk 0:02:56.5]}
5... cxd4 {[%clk 0:02:52.2]} 6. Nxd4 {[%clk 0:02:57.4]} 6... Ne4 {[%clk
0:02:52.7]} 7. Qd3 {[%clk 0:02:56.5]} 7... Nxc3 {[%clk 0:02:52.6]} 8. bxc3
{[%clk 0:02:57.4]} 8... Be7 {[%clk 0:02:52.9]} 9. Bg2 {[%clk 0:02:56.4]} 9...
O-O {[%clk 0:02:53]} 10. O-O {[%clk 0:02:57]} 10... d6 {[%clk 0:02:52.5]} 11.
Rd1 {[%clk 0:02:55.2]} 11... a6 {[%clk 0:02:52.8]} 12. Ba3 {[%clk 0:02:53.7]}
12... Qc7 {[%clk 0:02:51.9]} 13. Rab1 {[%clk 0:02:51.6]} 13... Nd7 {[%clk
0:02:49.5]} 14. Nb3 {[%clk 0:02:47.3]} 14... Nc5 {[%clk 0:02:47.5]} 15. Qe3
{[%clk 0:02:25.7]} 15... Rb8 {[%clk 0:02:42.9]} 16. h4 {[%clk 0:02:09.8]} 16...
b6 {[%clk 0:02:39.2]} 17. h5 {[%clk 0:02:00.3]} 17... h6 {[%clk 0:02:38.3]} 18.
Nd4 {[%clk 0:01:58.1]} 18... Bb7 {[%clk 0:02:33.2]} 19. Bxb7 {[%clk 0:01:46.7]}
19... Qxb7 {[%clk 0:02:30.1]} 20. Bxc5 {[%clk 0:01:39.1]} 20... dxc5 {[%clk
0:02:29.9]} 21. Nxe6 {[%clk 0:01:24.5]} 21... Rfe8 {[%clk 0:02:29.8]} 22. Nf4
{[%clk 0:00:52.9]} 22... Bg5 {[%clk 0:02:29.9]} 23. Qf3 {[%clk 0:00:53]} 23...
Qxf3 {[%clk 0:02:29.3]} 24. exf3 {[%clk 0:00:53.9]} 24... Bxf4 {[%clk
0:02:30.2]} 25. gxf4 {[%clk 0:00:54.8]} 25... Re2 {[%clk 0:02:06.7]} 26. Rd6
{[%clk 0:00:53.8]} 26... Rxa2 {[%clk 0:02:03.8]} 27. Rdxb6 {[%clk 0:00:52.8]}
27... Rxb6 {[%clk 0:02:04]} 28. Rxb6 {[%clk 0:00:53.7]} 28... Ra4 {[%clk
0:02:04.3]} 29. Kg2 {[%clk 0:00:46.3]} 29... Rxc4 {[%clk 0:01:59.7]} 30. Rxa6
{[%clk 0:00:44.3]} 30... Rxf4 {[%clk 0:01:52.5]} 31. Kg3 {[%clk 0:00:36.5]}
31... Rf5 {[%clk 0:01:45]} 32. Kg4 {[%clk 0:00:33.8]} 32... Rg5+ {[%clk
0:01:45]} 33. Kh4 {[%clk 0:00:34.3]} 33... Kf8 {[%clk 0:01:23.1]} 34. f4 {[%clk
0:00:29.3]} 34... Rd5 {[%clk 0:01:05.2]} 35. Rc6 {[%clk 0:00:27.3]} 35... Ke7
{[%clk 0:01:02.4]} 36. c4 {[%clk 0:00:26.8]} 36... Rd4 {[%clk 0:00:36.5]} 37.
Rxc5 {[%clk 0:00:25.7]} 37... Rxf4+ {[%clk 0:00:37]} 38. Kg3 {[%clk 0:00:25.4]}
38... Rf6 {[%clk 0:00:32.5]} 39. f4 {[%clk 0:00:23]} 39... Kd7 {[%clk 0:00:29]}
40. Kg4 {[%clk 0:00:19.3]} 40... Rc6 {[%clk 0:00:28.9]} 41. Rd5+ {[%clk
0:00:16.3]} 41... Ke6 {[%clk 0:00:27.6]} 42. Re5+ {[%clk 0:00:16.7]} 42... Kd6
{[%clk 0:00:26]} 43. Rd5+ {[%clk 0:00:16.3]} 43... Kc7 {[%clk 0:00:21.9]} 44. c5
{[%clk 0:00:15.9]} 44... Rf6 {[%clk 0:00:19.4]} 45. Re5 {[%clk 0:00:16]} 45...
Kc6 {[%clk 0:00:19.6]} 46. Kg3 {[%clk 0:00:15.5]} 46... Kd7 {[%clk 0:00:15.8]}
47. Kg4 {[%clk 0:00:15.3]} 47... Ra6 {[%clk 0:00:15.9]} 48. Rd5+ {[%clk
0:00:15]} 48... Ke6 {[%clk 0:00:15.5]} 49. Re5+ {[%clk 0:00:14.1]} 49... Kf6
{[%clk 0:00:16]} 50. Rf5+ {[%clk 0:00:14.1]} 50... Ke7 {[%clk 0:00:16.6]} 51.
Re5+ {[%clk 0:00:14.6]} 51... Kd7 {[%clk 0:00:16.5]} 52. Rd5+ {[%clk 0:00:14.7]}
52... Kc7 {[%clk 0:00:16.3]} 53. Rf5 {[%clk 0:00:14.7]} 53... f6 {[%clk
0:00:15.2]} 54. Rd5 {[%clk 0:00:14.3]} 54... Ra1 {[%clk 0:00:15.3]} 55. Kf5
{[%clk 0:00:14]} 55... Rg1 {[%clk 0:00:15]} 56. Rd6 {[%clk 0:00:12.5]} 56... Kb7
{[%clk 0:00:14.2]} 57. Re6 {[%clk 0:00:12.5]} 57... Kc7 {[%clk 0:00:12]} 58. Rb6
{[%clk 0:00:11.7]} 58... Rg2 {[%clk 0:00:11.4]} 59. Ra6 {[%clk 0:00:09.6]} 59...
Rg1 {[%clk 0:00:10.7]} 60. Ke6 {[%clk 0:00:07.9]} 60... Rh1 {[%clk 0:00:07.9]}
61. Ra7+ {[%clk 0:00:05.7]} 61... Kc6 {[%clk 0:00:08.1]} 62. Rxg7 {[%clk
0:00:06.3]} 62... Rxh5 {[%clk 0:00:07.8]} 63. Kxf6 {[%clk 0:00:05.9]} 63... Kxc5
{[%clk 0:00:04.7]} 64. Rd7 {[%clk 0:00:04.5]} 64... Kc6 {[%clk 0:00:02.4]} 65.
Rd1 {[%clk 0:00:04.5]} 65... Rd5 {[%clk 0:00:02.2]} 66. Rxd5 {[%clk 0:00:03.4]}
66... Kxd5 {[%clk 0:00:03.1]} 67. Kg6 {[%clk 0:00:03.4]} 67... Ke6 {[%clk
0:00:01.7]} 68. f5+ {[%clk 0:00:03.7]} 68... Ke5 {[%clk 0:00:02.6]} 69. f6
{[%clk 0:00:03.8]} 69... h5 {[%clk 0:00:03.5]} 70. f7 {[%clk 0:00:03.8]} 70...
h4 {[%clk 0:00:04.4]} 71. f8=Q {[%clk 0:00:04.7]} 71... h3 {[%clk 0:00:05.3]}
72. Qf1 {[%clk 0:00:04.6]} 72... h2 {[%clk 0:00:05]} 73. Qh1 {[%clk 0:00:05.5]}
1-0

[Event "*** SCC Grand Prix: Titled Tuesday Blitz"]
[Site "Chess.com"]
[Date "2020.07.21"]
[Round "10"]
[White "djano"]
[Black "XiaoKangZhong"]
[Result "0-1"]
[WhiteElo "2443"]
[BlackElo "2368"]
[TimeControl "180+1"]
[EndTime "12:01:31 PDT"]
[Termination "XiaoKangZhong won on time"]

1. c4 {[%clk 0:03:00.9]} 1... Nf6 {[%clk 0:02:59]} 2. Nc3 {[%clk 0:02:59.9]}
2... d5 {[%clk 0:02:58.4]} 3. cxd5 {[%clk 0:02:59.4]} 3... Nxd5 {[%clk
0:02:59.3]} 4. g3 {[%clk 0:02:59.8]} 4... Nc6 {[%clk 0:02:54]} 5. Bg2 {[%clk
0:02:59]} 5... Nb6 {[%clk 0:02:54.6]} 6. b3 {[%clk 0:02:55]} 6... e5 {[%clk
0:02:54]} 7. Bb2 {[%clk 0:02:54.9]} 7... Be6 {[%clk 0:02:53.4]} 8. Nf3 {[%clk
0:02:50.8]} 8... Be7 {[%clk 0:02:50.7]} 9. O-O {[%clk 0:02:45.3]} 9... O-O
{[%clk 0:02:47.1]} 10. Rc1 {[%clk 0:02:43]} 10... f5 {[%clk 0:02:23.9]} 11. d3
{[%clk 0:02:33.8]} 11... Bf6 {[%clk 0:02:15.4]} 12. Nd2 {[%clk 0:02:30.1]} 12...
Qd7 {[%clk 0:02:10]} 13. Nc4 {[%clk 0:02:28.3]} 13... Nxc4 {[%clk 0:02:10]} 14.
bxc4 {[%clk 0:02:27.7]} 14... Rab8 {[%clk 0:01:59.3]} 15. Nd5 {[%clk 0:02:25.8]}
15... Bxd5 {[%clk 0:01:45.2]} 16. Bxd5+ {[%clk 0:02:25]} 16... Kh8 {[%clk
0:01:43.7]} 17. Qa4 {[%clk 0:02:24.2]} 17... Rfd8 {[%clk 0:01:33.9]} 18. Bxc6
{[%clk 0:01:48.4]} 18... Qxc6 {[%clk 0:01:32.6]} 19. Qxc6 {[%clk 0:01:45.2]}
19... bxc6 {[%clk 0:01:33.5]} 20. Ba3 {[%clk 0:01:41.5]} 20... Rb7 {[%clk
0:01:32.9]} 21. Bc5 {[%clk 0:01:35]} 21... Rdb8 {[%clk 0:01:29.9]} 22. Rc2
{[%clk 0:01:31.3]} 22... Kg8 {[%clk 0:01:27.3]} 23. Kg2 {[%clk 0:01:31.1]} 23...
Kf7 {[%clk 0:01:26.6]} 24. f4 {[%clk 0:01:27.9]} 24... Rb2 {[%clk 0:01:16.8]}
25. Rfc1 {[%clk 0:01:17]} 25... a6 {[%clk 0:01:13]} 26. fxe5 {[%clk 0:01:15]}
26... Bxe5 {[%clk 0:01:13.2]} 27. Kf3 {[%clk 0:01:10]} 27... Ke6 {[%clk
0:00:59.9]} 28. Ba3 {[%clk 0:01:09.5]} 28... Rxc2 {[%clk 0:00:54.1]} 29. Rxc2
{[%clk 0:01:10.4]} 29... Rb1 {[%clk 0:00:54.6]} 30. Bc1 {[%clk 0:01:04.2]} 30...
c5 {[%clk 0:00:42.6]} 31. Be3 {[%clk 0:01:02.4]} 31... Kd6 {[%clk 0:00:42.3]}
32. Bf2 {[%clk 0:00:49.9]} 32... a5 {[%clk 0:00:35.8]} 33. e3 {[%clk 0:00:48.7]}
33... Bf6 {[%clk 0:00:35.5]} 34. d4 {[%clk 0:00:48.7]} 34... cxd4 {[%clk
0:00:35.5]} 35. exd4 {[%clk 0:00:49.1]} 35... a4 {[%clk 0:00:31.8]} 36. Rc3
{[%clk 0:00:46]} 36... Kd7 {[%clk 0:00:21.8]} 37. c5 {[%clk 0:00:37.5]} 37...
Rb4 {[%clk 0:00:21.6]} 38. Rd3 {[%clk 0:00:36.5]} 38... c6 {[%clk 0:00:21.5]}
39. h4 {[%clk 0:00:34.4]} 39... Rb2 {[%clk 0:00:21.2]} 40. Ra3 {[%clk
0:00:31.6]} 40... Rb4 {[%clk 0:00:21.2]} 41. Rd3 {[%clk 0:00:31.7]} 41... Ke6
{[%clk 0:00:21.6]} 42. d5+ {[%clk 0:00:15.7]} 42... cxd5 {[%clk 0:00:19.1]} 43.
Re3+ {[%clk 0:00:14.3]} 43... Re4 {[%clk 0:00:16.9]} 44. Ra3 {[%clk 0:00:13.4]}
44... Rc4 {[%clk 0:00:16]} 45. Re3+ {[%clk 0:00:13]} 45... Kd7 {[%clk
0:00:15.6]} 46. Rd3 {[%clk 0:00:13.3]} 46... Kc6 {[%clk 0:00:15.3]} 47. h5
{[%clk 0:00:11.7]} 47... g6 {[%clk 0:00:12.4]} 48. h6 {[%clk 0:00:11.6]} 48...
Bg5 {[%clk 0:00:12.3]} 49. Rd1 {[%clk 0:00:10.2]} 49... Rc3+ {[%clk 0:00:09.8]}
50. Kg2 {[%clk 0:00:10.4]} 50... Rc2 {[%clk 0:00:10.3]} 51. Kf3 {[%clk
0:00:10.7]} 51... Rxa2 {[%clk 0:00:09.3]} 52. Rb1 {[%clk 0:00:11.2]} 52... Ra3+
{[%clk 0:00:09.5]} 53. Kg2 {[%clk 0:00:10]} 53... Rb3 {[%clk 0:00:10]} 54. Re1
{[%clk 0:00:10.2]} 54... Bxh6 {[%clk 0:00:07.6]} 55. Re6+ {[%clk 0:00:10.1]}
55... Kd7 {[%clk 0:00:07.7]} 56. Rd6+ {[%clk 0:00:10.5]} 56... Kc7 {[%clk
0:00:08]} 57. Rxd5 {[%clk 0:00:07.6]} 57... Rb2 {[%clk 0:00:08]} 58. Kf3 {[%clk
0:00:07]} 58... a3 {[%clk 0:00:07.8]} 59. Re5 {[%clk 0:00:05.7]} 59... a2 {[%clk
0:00:04.9]} 60. Re7+ {[%clk 0:00:05.5]} 60... Kb8 {[%clk 0:00:05.6]} 61. Re8+
{[%clk 0:00:05.2]} 61... Kb7 {[%clk 0:00:06]} 62. Re7+ {[%clk 0:00:05.5]} 62...
Ka6 {[%clk 0:00:03.6]} 63. Re6+ {[%clk 0:00:06.1]} 63... Kb5 {[%clk 0:00:03.6]}
64. Rb6+ {[%clk 0:00:06.3]} 64... Kc4 {[%clk 0:00:04]} 65. Ra6 {[%clk
0:00:06.8]} 65... Kd5 {[%clk 0:00:03.9]} 66. Ra5 {[%clk 0:00:06.4]} 66... Bg7
{[%clk 0:00:03.6]} 67. Ra6 {[%clk 0:00:06.5]} 67... Rc2 {[%clk 0:00:03.6]} 68.
c6 {[%clk 0:00:06.4]} 68... a1=Q {[%clk 0:00:02.6]} 69. Rxa1 {[%clk 0:00:05]}
69... Bxa1 {[%clk 0:00:03.5]} 70. Bc5 {[%clk 0:00:05.1]} 70... Rxc5 {[%clk
0:00:03.8]} 71. c7 {[%clk 0:00:06]} 71... Rxc7 {[%clk 0:00:04.2]} 0-1

[Event "*** SCC Grand Prix: Titled Tuesday Blitz"]
[Site "Chess.com"]
[Date "2020.07.21"]
[Round "10"]
[White "chesstrainer2042"]
[Black "CaspiIsrael"]
[Result "0-1"]
[WhiteElo "2469"]
[BlackElo "2615"]
[TimeControl "180+1"]
[EndTime "12:01:33 PDT"]
[Termination "CaspiIsrael won on time"]

1. e4 {[%clk 0:03:00.9]} 1... d5 {[%clk 0:02:58.4]} 2. exd5 {[%clk 0:03:00.5]}
2... Qxd5 {[%clk 0:02:59.3]} 3. Nf3 {[%clk 0:03:00.6]} 3... Bg4 {[%clk
0:02:58.7]} 4. Be2 {[%clk 0:03:00.1]} 4... Nc6 {[%clk 0:02:59.2]} 5. h3 {[%clk
0:02:56.9]} 5... Bxf3 {[%clk 0:02:59]} 6. Bxf3 {[%clk 0:02:57.1]} 6... Qe5+
{[%clk 0:02:59.6]} 7. Qe2 {[%clk 0:02:57.3]} 7... Qxe2+ {[%clk 0:02:59.7]} 8.
Bxe2 {[%clk 0:02:56.9]} 8... Nd4 {[%clk 0:03:00.3]} 9. Bd1 {[%clk 0:02:56.3]}
9... e5 {[%clk 0:02:59.4]} 10. O-O {[%clk 0:02:53.1]} 10... O-O-O {[%clk
0:02:58.7]} 11. d3 {[%clk 0:02:53.3]} 11... g6 {[%clk 0:02:58.5]} 12. Re1 {[%clk
0:02:51.2]} 12... Bg7 {[%clk 0:02:58.4]} 13. Nc3 {[%clk 0:02:50.3]} 13... f5
{[%clk 0:02:57.8]} 14. Ne2 {[%clk 0:02:44.3]} 14... Nc6 {[%clk 0:02:57]} 15. Rb1
{[%clk 0:02:37.1]} 15... Nf6 {[%clk 0:02:43.5]} 16. b4 {[%clk 0:02:35.1]} 16...
Rhe8 {[%clk 0:02:43.1]} 17. b5 {[%clk 0:02:15.8]} 17... Ne7 {[%clk 0:02:34.3]}
18. Bb2 {[%clk 0:02:06.8]} 18... Ned5 {[%clk 0:02:33.1]} 19. Ng3 {[%clk
0:02:00.4]} 19... Nd7 {[%clk 0:02:18.3]} 20. a3 {[%clk 0:01:56.6]} 20... N5b6
{[%clk 0:02:15.2]} 21. Bf3 {[%clk 0:01:43.2]} 21... Na4 {[%clk 0:02:12.7]} 22.
Ba1 {[%clk 0:01:43.1]} 22... Ndc5 {[%clk 0:02:12]} 23. h4 {[%clk 0:01:38.1]}
23... h5 {[%clk 0:02:08.7]} 24. Bd1 {[%clk 0:01:24.7]} 24... Bf6 {[%clk
0:02:07.1]} 25. Nf1 {[%clk 0:01:19.6]} 25... Rd6 {[%clk 0:01:40]} 26. g3 {[%clk
0:01:16.1]} 26... e4 {[%clk 0:01:40]} 27. Bxf6 {[%clk 0:01:09.1]} 27... Rxf6
{[%clk 0:01:40.9]} 28. Rb4 {[%clk 0:01:01.8]} 28... Rfe6 {[%clk 0:01:35.7]} 29.
d4 {[%clk 0:01:00.8]} 29... b6 {[%clk 0:01:20.2]} 30. dxc5 {[%clk 0:00:59.1]}
30... Nxc5 {[%clk 0:01:21.1]} 31. Ne3 {[%clk 0:00:59.1]} 31... Rd8 {[%clk
0:01:20.1]} 32. Be2 {[%clk 0:00:57]} 32... Rd2 {[%clk 0:01:17.4]} 33. Rbb1
{[%clk 0:00:50.4]} 33... c6 {[%clk 0:01:13.5]} 34. Rbd1 {[%clk 0:00:48]} 34...
Rxd1 {[%clk 0:01:11.5]} 35. Rxd1 {[%clk 0:00:48.1]} 35... cxb5 {[%clk
0:01:11.3]} 36. Bxb5 {[%clk 0:00:48]} 36... a6 {[%clk 0:01:11.6]} 37. Bc4 {[%clk
0:00:47.7]} 37... Rc6 {[%clk 0:01:10]} 38. Bd5 {[%clk 0:00:47.6]} 38... Rd6
{[%clk 0:01:08.4]} 39. Nc4 {[%clk 0:00:46.8]} 39... Rf6 {[%clk 0:01:08.4]} 40.
Rb1 {[%clk 0:00:42.8]} 40... Kc7 {[%clk 0:01:08]} 41. Ne3 {[%clk 0:00:41]} 41...
Rd6 {[%clk 0:01:05.1]} 42. c4 {[%clk 0:00:39.3]} 42... Nd3 {[%clk 0:01:04.2]}
43. Kf1 {[%clk 0:00:35.8]} 43... Rf6 {[%clk 0:01:02.1]} 44. Ng2 {[%clk
0:00:35.2]} 44... Ne5 {[%clk 0:01:00.1]} 45. Nf4 {[%clk 0:00:34]} 45... Rd6
{[%clk 0:00:57.3]} 46. Ne6+ {[%clk 0:00:32.3]} 46... Kc8 {[%clk 0:00:55.7]} 47.
Nf4 {[%clk 0:00:28]} 47... Kc7 {[%clk 0:00:54]} 48. a4 {[%clk 0:00:28.3]} 48...
a5 {[%clk 0:00:53.6]} 49. Rb5 {[%clk 0:00:26.9]} 49... Nd7 {[%clk 0:00:37.6]}
50. Bf7 {[%clk 0:00:22.3]} 50... Nc5 {[%clk 0:00:33.5]} 51. Bxg6 {[%clk
0:00:21.8]} 51... Nxa4 {[%clk 0:00:33.5]} 52. Nd5+ {[%clk 0:00:17.7]} 52... Kb7
{[%clk 0:00:31.1]} 53. Bxf5 {[%clk 0:00:17.6]} 53... Nc5 {[%clk 0:00:31.2]} 54.
g4 {[%clk 0:00:14.6]} 54... hxg4 {[%clk 0:00:30.5]} 55. h5 {[%clk 0:00:14.9]}
55... a4 {[%clk 0:00:24.7]} 56. Rb1 {[%clk 0:00:14.7]} 56... Nb3 {[%clk
0:00:21.9]} 57. Ke1 {[%clk 0:00:11.6]} 57... Kc6 {[%clk 0:00:18.8]} 58. Bxg4
{[%clk 0:00:11.7]} 58... Kc5 {[%clk 0:00:17.9]} 59. Bd1 {[%clk 0:00:11.4]} 59...
Kxc4 {[%clk 0:00:16.7]} 60. Bxb3+ {[%clk 0:00:10.6]} 60... axb3 {[%clk
0:00:17.1]} 61. Ne3+ {[%clk 0:00:11.1]} 61... Kc3 {[%clk 0:00:17.2]} 62. Rc1+
{[%clk 0:00:09.1]} 62... Kb4 {[%clk 0:00:17.1]} 63. Rc4+ {[%clk 0:00:08.1]}
63... Ka3 {[%clk 0:00:16.8]} 64. Rxe4 {[%clk 0:00:07.8]} 64... Rc6 {[%clk
0:00:14.8]} 65. Nc4+ {[%clk 0:00:07.1]} 65... Rxc4 {[%clk 0:00:14]} 66. Rxc4
{[%clk 0:00:07.2]} 66... b2 {[%clk 0:00:14.9]} 67. Rc3+ {[%clk 0:00:05.2]} 67...
Kb4 {[%clk 0:00:13.4]} 0-1

[Event "*** SCC Grand Prix: Titled Tuesday Blitz"]
[Site "Chess.com"]
[Date "2020.07.21"]
[Round "10"]
[White "ChelsieMonica"]
[Black "MagnusSeinFanboy"]
[Result "1-0"]
[WhiteElo "2405"]
[BlackElo "2516"]
[TimeControl "180+1"]
[EndTime "12:01:35 PDT"]
[Termination "ChelsieMonica won by resignation"]

1. c4 {[%clk 0:03:00.9]} 1... c5 {[%clk 0:02:55.7]} 2. Nc3 {[%clk 0:03:01.1]}
2... Nc6 {[%clk 0:02:55.8]} 3. Nf3 {[%clk 0:02:59.4]} 3... g6 {[%clk 0:02:55.2]}
4. g3 {[%clk 0:02:59.3]} 4... Bg7 {[%clk 0:02:55.4]} 5. Bg2 {[%clk 0:02:56.2]}
5... e5 {[%clk 0:02:55.8]} 6. O-O {[%clk 0:02:54.9]} 6... Nge7 {[%clk
0:02:55.5]} 7. d3 {[%clk 0:02:54.1]} 7... O-O {[%clk 0:02:54.9]} 8. Nd5 {[%clk
0:02:50.8]} 8... d6 {[%clk 0:02:52.3]} 9. Nxe7+ {[%clk 0:02:47.5]} 9... Nxe7
{[%clk 0:02:50.8]} 10. Bg5 {[%clk 0:02:44]} 10... f6 {[%clk 0:02:36.1]} 11. Be3
{[%clk 0:02:40.4]} 11... Be6 {[%clk 0:02:29.7]} 12. Qd2 {[%clk 0:02:35.1]} 12...
Rc8 {[%clk 0:02:16.8]} 13. Bh6 {[%clk 0:02:34]} 13... d5 {[%clk 0:02:16.7]} 14.
Bxg7 {[%clk 0:02:33.7]} 14... Kxg7 {[%clk 0:02:17]} 15. Rac1 {[%clk 0:02:30.7]}
15... Qd7 {[%clk 0:02:09.5]} 16. Rfd1 {[%clk 0:02:24.7]} 16... d4 {[%clk
0:02:04.4]} 17. e4 {[%clk 0:02:08.6]} 17... g5 {[%clk 0:01:52.6]} 18. h4 {[%clk
0:02:04.4]} 18... h6 {[%clk 0:01:51.4]} 19. b4 {[%clk 0:01:57.6]} 19... b6
{[%clk 0:01:49.3]} 20. b5 {[%clk 0:01:55.1]} 20... Bg4 {[%clk 0:01:48.9]} 21. a4
{[%clk 0:01:39.1]} 21... gxh4 {[%clk 0:01:37.7]} 22. Nxh4 {[%clk 0:01:35.6]}
22... Bxd1 {[%clk 0:01:31.4]} 23. Qxd1 {[%clk 0:01:36.5]} 23... Kh7 {[%clk
0:01:24.8]} 24. Kh2 {[%clk 0:01:36.7]} 24... Rg8 {[%clk 0:01:22.2]} 25. Bh3
{[%clk 0:01:36.6]} 25... Qe8 {[%clk 0:01:17.4]} 26. Bxc8 {[%clk 0:01:36.1]}
26... Qxc8 {[%clk 0:01:16]} 27. Qf3 {[%clk 0:01:36]} 27... Qe6 {[%clk
0:01:11.9]} 28. a5 {[%clk 0:01:35.4]} 28... Rf8 {[%clk 0:00:40.6]} 29. axb6
{[%clk 0:01:33.7]} 29... axb6 {[%clk 0:00:41.5]} 30. Ra1 {[%clk 0:01:26.9]}
30... Rf7 {[%clk 0:00:36.6]} 31. Ra7 {[%clk 0:01:16.8]} 31... Ng6 {[%clk
0:00:33.4]} 32. Qf5 {[%clk 0:00:58.4]} 32... Qxf5 {[%clk 0:00:09.3]} 33. Rxf7+
{[%clk 0:00:57.9]} 33... Kg8 {[%clk 0:00:09.5]} 34. exf5 {[%clk 0:00:52.9]}
34... Nxh4 {[%clk 0:00:08.7]} 35. Rxf6 {[%clk 0:00:53.1]} 35... Nf3+ {[%clk
0:00:08.4]} 36. Kg2 {[%clk 0:00:51]} 36... Ne1+ {[%clk 0:00:08.6]} 37. Kf1
{[%clk 0:00:51.3]} 37... Nxd3 {[%clk 0:00:09.5]} 38. Rxb6 {[%clk 0:00:50.3]}
38... Nb2 {[%clk 0:00:09.6]} 39. Rg6+ {[%clk 0:00:49.6]} 39... Kf7 {[%clk
0:00:09.4]} 40. b6 {[%clk 0:00:50.5]} 40... d3 {[%clk 0:00:08]} 41. Rd6 {[%clk
0:00:50.7]} 41... Nxc4 {[%clk 0:00:07.7]} 42. Rxd3 {[%clk 0:00:50.6]} 42... Nxb6
{[%clk 0:00:07.8]} 43. Rd6 {[%clk 0:00:50.8]} 43... Nc4 {[%clk 0:00:06.1]} 44.
Rd5 {[%clk 0:00:49.5]} 44... Kf6 {[%clk 0:00:05.5]} 45. Rxc5 {[%clk 0:00:49.6]}
45... Nd2+ {[%clk 0:00:05.6]} 46. Ke2 {[%clk 0:00:49.9]} 46... Nb3 {[%clk
0:00:04.4]} 47. Rc6+ {[%clk 0:00:46.1]} 47... Kg5 {[%clk 0:00:04.8]} 48. Rg6+
{[%clk 0:00:45.5]} 48... Kxf5 {[%clk 0:00:04.9]} 49. Rxh6 {[%clk 0:00:45.9]}
49... Nd4+ {[%clk 0:00:05.8]} 50. Ke3 {[%clk 0:00:45.4]} 50... Nc2+ {[%clk
0:00:06.1]} 51. Kd3 {[%clk 0:00:43.8]} 51... Nb4+ {[%clk 0:00:06.2]} 52. Kc4
{[%clk 0:00:42.4]} 52... Nc2 {[%clk 0:00:06.4]} 53. Kc3 {[%clk 0:00:41.1]} 53...
Ne1 {[%clk 0:00:05.7]} 54. Kd2 {[%clk 0:00:40.6]} 54... Nf3+ {[%clk 0:00:05.7]}
55. Ke3 {[%clk 0:00:39.7]} 55... Ne1 {[%clk 0:00:06.4]} 56. Rh1 {[%clk
0:00:38.9]} 56... Nc2+ {[%clk 0:00:06.1]} 57. Kf3 {[%clk 0:00:39.1]} 57... Nd4+
{[%clk 0:00:06.3]} 58. Kg2 {[%clk 0:00:38.7]} 58... Ne6 {[%clk 0:00:05.6]} 59.
Rh4 {[%clk 0:00:37.9]} 59... Ng5 {[%clk 0:00:05.4]} 60. Kf1 {[%clk 0:00:34.4]}
60... Nf3 {[%clk 0:00:05.2]} 61. Ra4 {[%clk 0:00:33.6]} 61... Nd2+ {[%clk
0:00:04.9]} 62. Ke2 {[%clk 0:00:33.9]} 62... Nb1 {[%clk 0:00:05.2]} 63. Rc4
{[%clk 0:00:33]} 63... Na3 {[%clk 0:00:05.3]} 64. Rc5 {[%clk 0:00:33]} 64... Ke4
{[%clk 0:00:05.9]} 65. Kd2 {[%clk 0:00:31.5]} 65... Kd4 {[%clk 0:00:06]} 66. Rc8
{[%clk 0:00:30.2]} 66... Nc4+ {[%clk 0:00:06.1]} 67. Ke2 {[%clk 0:00:30.7]}
67... Nb6 {[%clk 0:00:05.4]} 68. Rd8+ {[%clk 0:00:30.2]} 68... Ke4 {[%clk
0:00:05.5]} 69. f3+ {[%clk 0:00:30]} 69... Kf5 {[%clk 0:00:05.7]} 70. g4+ {[%clk
0:00:30.3]} 70... Kg5 {[%clk 0:00:05.9]} 71. Ke3 {[%clk 0:00:30.4]} 71... Nc4+
{[%clk 0:00:04.9]} 72. Ke4 {[%clk 0:00:30.5]} 72... Kf6 {[%clk 0:00:05.2]} 73.
Rf8+ {[%clk 0:00:29.5]} 73... Ke7 {[%clk 0:00:05.1]} 74. Ra8 {[%clk 0:00:27.9]}
74... Kf6 {[%clk 0:00:04.9]} 75. Ra6+ {[%clk 0:00:28]} 75... Kg5 {[%clk
0:00:05.2]} 76. Rc6 {[%clk 0:00:27.7]} 76... Nd2+ {[%clk 0:00:05.3]} 77. Ke3
{[%clk 0:00:27.9]} 77... Nf1+ {[%clk 0:00:05.6]} 78. Ke2 {[%clk 0:00:27.3]}
78... Nh2 {[%clk 0:00:05.2]} 79. Rc5 {[%clk 0:00:26.2]} 79... Kf4 {[%clk
0:00:05.4]} 80. Rc4+ {[%clk 0:00:24.7]} 80... Kg5 {[%clk 0:00:05.1]} 81. Kf2
{[%clk 0:00:24.6]} 81... e4 {[%clk 0:00:03.3]} 82. Rxe4 {[%clk 0:00:24.1]} 82...
Kh4 {[%clk 0:00:03.8]} 83. Kg2 {[%clk 0:00:23.8]} 83... Nxg4 {[%clk 0:00:02.7]}
84. Rxg4+ {[%clk 0:00:23.3]} 84... Kh5 {[%clk 0:00:03.2]} 85. Kg3 {[%clk
0:00:23.6]} 1-0